Cogmind - Beta 13 *** ADVENTURER MODE // 2024.03.14 @ 17:36:30 Player: bryce Result: Destroyed by S-27 Virus with Autogun Performance ------------- Evolutions (4) 2000 Regions Visited (6) 1200 Robots Destroyed (57) 285 Value Destroyed (2385) 2385 Prototype IDs (1) 20 Alien Tech Used (0) 0 Bonus (25) 25 TOTAL SCORE: 5915 Bonus ------- High Alert Combat Kills 25 Cogmind --------- Core Integrity 0/850 Matter 46/300 Energy 100/100 System Corruption 0% Temperature Cool (0) Movement Core (50) Location -6/Factory Parts ------- > --- POWER (2) -------- (None) > --- PROPULSION (4) --- (None) > --- UTILITY (5) ------ (None) > --- WEAPON (4) ------- (None) > --- INVENTORY (5) ---- Hardened Medium Armor Plating System Shield Peak State ------------ > --- POWER ------------ Improved Deuterium Engine Light Angular Momentum Engine > --- PROPULSION ------- Light Treads Carbon-fiber Leg Carbon-fiber Leg Carbon-fiber Leg > --- UTILITY ---------- Medium Storage Unit Improved Power Shielding > --- WEAPON ----------- Particle Gun Flak Gun Assault Cannon > --- INVENTORY -------- Particle Charger System Shield Particle Gun Particle Gun Improved EM Pulse Cannon Heavy Ion Cannon Flak Gun Flak Cannon Mini Grenade Launcher [Rating: 34] Favorites ----------- Power Light Ion Engine Engine Light Ion Engine Power Core Light Nuclear Core Propulsion Light Treads Treads Light Treads Leg Aluminum Leg Wheel Wheel Flight Unit VTOL Module Utility Small Storage Unit Storage Small Storage Unit Protection Improved Power Shielding Weapon Particle Gun Energy Gun Particle Gun Energy Cannon Particle Cannon Ballistic Gun Flak Gun Ballistic Cannon Assault Cannon Launcher Mini Grenade Launcher Build | -11 -10 -9 -9 -8 -7 -6 ------- Run | Yrd Mat Mat Min Mat Fac Fac Slots Evolved 8 | . . 2 . 2 2 2 Power 1 | . . . . 1 . . Propulsion 2 | . . 1 . . 1 . Utility 3 | . . . . 1 1 1 Weapon 2 | . . 1 . . . 1 Parts Attached 67 | 5 4 3 3 10 20 22 Power 12 | 1 1 . 1 3 3 3 Engine 8 | 1 1 . 1 3 1 1 Core 4 | . . . . . 2 2 Reactor . | . . . . . . . Propulsion 25 | 2 1 1 . 4 8 9 Treads 8 | . 1 1 . 1 3 2 Leg 10 | . . . . 3 2 5 Wheel 4 | 2 . . . . . 2 Hover . | . . . . . . . Flight 3 | . . . . . 3 . Utility 6 | 1 1 . 1 . 2 1 Device . | . . . . . . . Storage 4 | 1 1 . 1 . . 1 Processor . | . . . . . . . Hackware . | . . . . . . . Protection 2 | . . . . . 2 . Artifact . | . . . . . . . Weapon 24 | 1 1 2 1 3 7 9 Energy Gun 6 | . . . . 1 2 3 Energy Cannon 4 | . . . . . 2 2 Ballistic Gun 8 | 1 1 2 1 . 2 1 Ballistic Cannon 5 | . . . . 2 1 2 Launcher 1 | . . . . . . 1 Special Weapon . | . . . . . . . Impact Weapon . | . . . . . . . Slashing Weapon . | . . . . . . . Piercing Weapon . | . . . . . . . Special Melee Weapon . | . . . . . . . Unidentified Prototypes 1 | . . . . . 1 . Parts Lost 35 | . 1 2 1 8 9 14 Power 6 | . . 1 . 2 2 1 Propulsion 15 | . 1 1 . 3 5 5 Utility 5 | . . . . . 1 4 Weapon 9 | . . . 1 3 1 4 Highest Loss Streak 8 | . 1 2 1 8 8 4 To Critical Strikes . | . . . . . . . Average Slot Usage (%) 68 | . 98 82 80 60 66 47 Engine 8 | . 14 10 9 10 7 5 Treads 10 | . 5 12 22 7 10 5 Leg 7 | . . . . 11 9 7 Wheel 2 | . 21 9 . . . 2 Flight 1 | . . . . . 3 . Storage 16 | . 28 22 21 18 15 5 Protection 1 | . . . . . 1 3 Energy Gun 2 | . . . . . 4 2 Energy Cannon 3 | . . . . . 5 1 Ballistic Gun 9 | . 26 27 27 5 3 1 Ballistic Cannon 2 | . . . . 6 2 4 Naked Turns 25 | . . . . . . 25 Heaviest Build 43 | 11 18 21 24 29 40 43 Greatest Support 60 | 20 20 40 40 40 60 60 Greatest Overweight (x) 10 | . . . . 6 10 6 Average Overweight (x) . | . . . . . . . Largest Inventory Capacity 10 | 8 8 8 10 10 10 10 Average Capacity 9 | 7 8 8 9 10 10 8 Most Carried 10 | 7 8 8 9 9 10 10 Average Carried 8 | 5 7 7 8 5 9 7 Final Capacity 10 | 8 8 8 10 10 10 5 Final Carried 10 | 7 7 8 9 5 10 2 Class Distribution -------------------- 45% | Mutant 19% | Scavenger-Gunner 19% | Scavenger-Mutant 8% | Scavenger-Tank 6% | Gunner Dominant Class ---------------- Mutant | -10/Materials Gunner | -9/Materials Mutant | -9/Mines Mutant | -8/Materials Scavenger-Gunner | -7/Factory Mutant | -6/Factory Resources | -11 -10 -9 -9 -8 -7 -6 ----------- Run | Yrd Mat Mat Min Mat Fac Fac Matter Collected 1526 | 216 101 38 62 171 574 364 Remotely . | . . . . . . . Salvage Created 1907 | 96 180 56 48 144 940 443 Parts 90 | 4 10 6 5 9 44 12 Haulers Intercepted . | . . . . . . . Recyclers Shooed 1 | . . . . . . 1 Parts Field Recycled . | . . . . . . . Retrieved Matter . | . . . . . . . Parts Self-Destructed . | . . . . . . . Prevented . | . . . . . . . Kills | -11 -10 -9 -9 -8 -7 -6 ------- Run | Yrd Mat Mat Min Mat Fac Fac Combat Hostiles Destroyed 52 | . 5 1 3 8 21 14 Guns 14 | . 5 1 3 1 1 3 Cannons 36 | . . . . 7 20 9 AOE 2 | . . . . . . 2 Classes Destroyed 8 | 1 1 1 1 . 3 1 Worker 2 | . . . . . 1 1 Recycler 3 | 1 . . . . 2 . Swarmer 10 | . . . 3 3 4 . Grunt 29 | . 5 . . 5 7 12 Duelist 1 | . . . . . . 1 Sentry 7 | . . 1 . . 5 1 Hunter 1 | . . . . . 1 . Programmer 4 | . . . . . 4 . Best Kill Streak 5 | 1 3 1 3 4 5 4 Combat Bots Only 5 | . 3 1 3 4 5 4 Max Kills in Single Turn 1 | 1 1 1 1 1 1 1 Gunslinging . | . . . . . . . Exploded 1 | . . . . . . 1 Melee . | . . . . . . . Uniques/NPCs Destroyed . | . . . . . . . Combat | -11 -10 -9 -9 -8 -7 -6 -------- Run | Yrd Mat Mat Min Mat Fac Fac Hostile Shots Fired 928 | . 40 66 34 162 328 298 Missed 296 | . 12 16 4 52 121 91 Damage Taken 6886 | . 242 349 189 1291 1767 3048 Core 1698 | . 50 69 17 357 345 860 Absorbed by Shields . | . . . . . . . Redirected to Shielding 104 | . . . . . . 104 Ignored by Resistances 2011 | . 79 114 60 373 534 851 Core Remaining (%) 68 | 100 80 . 78 35 50 . Volleys Fired 295 | 3 34 7 11 47 106 87 Largest 2 | 1 1 2 2 1 2 2 Hottest 109 | 20 20 43 43 65 99 109 Shots Fired 307 | 3 34 8 13 47 111 91 Gun 102 | 3 34 8 13 12 10 22 Cannon 193 | . . . . 35 101 57 Launcher 12 | . . . . . . 12 Special . | . . . . . . . Kinetic 239 | 3 34 8 13 45 67 69 Thermal 55 | . . . . 2 44 9 Explosive 12 | . . . . . . 12 Electromagnetic 1 | . . . . . . 1 Robot Hit Streak 37 | 3 29 37 5 14 15 20 Robot Miss Streak 3 | . 1 . 3 2 3 3 Penetration Max . | . . . . . . . Secondary Targets . | . . . . . . . Shots Hit Robots 256 | 3 33 8 7 40 93 72 Core Hits 149 | 2 11 3 3 15 46 69 Critical Kills 1 | . 1 . . . . . Critical Parts Destroyed 1 | . 1 . . . . . Critical Strikes 8 | . 2 . . 1 . 5 Burn 1 | . . . . . . 1 Destroy 2 | . 2 . . . . . Blast 5 | . . . . 1 . 4 Melee Attacks . | . . . . . . . Impact . | . . . . . . . Slashing . | . . . . . . . Piercing . | . . . . . . . Sneak Attacks . | . . . . . . . Combat Hostiles . | . . . . . . . Follow-up Attacks . | . . . . . . . Damage Inflicted 6246 | 23 270 74 111 794 2295 2679 Guns 1256 | 23 270 74 111 160 142 476 Cannons 4083 | . . . . 634 2153 1296 Explosions 891 | . . . . . . 891 Melee . | . . . . . . . Ramming 16 | . . . . . . 16 Kinetic 4166 | 23 270 74 111 756 1329 1603 Thermal 1149 | . . . . 38 966 145 Explosive 891 | . . . . . . 891 Electromagnetic 24 | . . . . . . 24 Impact . | . . . . . . . Slashing . | . . . . . . . Piercing . | . . . . . . . Highest Corruption 3 | . . . . . 3 . Average Corruption 2 | . . . . . 2 . Corruption Purged . | . . . . . . . Corruption Blocked . | . . . . . . . Effects 31 | . . . . . 31 . Message Errors 7 | . . . . . 7 . Matter Fused 5 | . . . . . 5 . Heat Flow Errors 5 | . . . . . 5 . Energy Discharges 5 | . . . . . 5 . Parts Fused 1 | . . . . . 1 . Data Loss (minor) 6 | . . . . . 6 . Data Loss (major) 1 | . . . . . 1 . Misfires 1 | . . . . . 1 . Overload Shots . | . . . . . . . Overflow Damage 61 | . . . . 16 28 17 Projectiles 44 | . . . . 16 28 . Explosions 17 | . . . . . . 17 Melee . | . . . . . . . Knockbacks 56 | . . . . 13 13 30 Impact . | . . . . . . . Kinetic 53 | . . . . 13 13 27 Secondary 3 | . . . . . . 3 Self-Inflicted Damage 7 | . . . . . . 7 Shots . | . . . . . . . Rammed 6 | . . . . . . 6 Targets Rammed 6 | . . . . . . 6 Kicked . | . . . . . . . Crushed . | . . . . . . . Highest Temperature 254 | . 9 6 . 60 254 113 Average Temperature 50 | . 6 5 . 14 71 31 Received Heat Transfer 3115 | . 171 78 . 945 669 1252 Siege Activations . | . . . . . . . Robots Corrupted . | . . . . . . . Combat Hostiles . | . . . . . . . Parts Fried . | . . . . . . . Impact Corruptions . | . . . . . . . Robots Melted . | . . . . . . . Combat Hostiles . | . . . . . . . Parts Melted 4 | . . . . . 4 . Heat Transferred 1882 | . . . . 50 1517 315 Parts Sabotaged . | . . . . . . . Parts Stolen . | . . . . . . . Parts Stripped . | . . . . . . . Power Chain Reactions . | . . . . . . . Alert | -11 -10 -9 -9 -8 -7 -6 ------- Run | Yrd Mat Mat Min Mat Fac Fac Peak Influence 576 | 5 137 114 94 190 185 576 Initial 49 | . 2 49 34 30 . 14 Average 97 | 2 47 61 89 77 60 325 Maximum Alert Level 2 | . . . . . . 2 Low Security (%) 90 | 100 100 100 100 100 100 27 Level 1 4 | . . . . . . 37 Level 2 4 | . . . . . . 35 Level 3 . | . . . . . . . Level 4 . | . . . . . . . Level 5 . | . . . . . . . High Security . | . . . . . . . Max Security . | . . . . . . . Squads Dispatched 15 | . 2 . . 2 3 8 Investigation 3 | . 2 . . 1 . . Extermination 3 | . . . . . 3 . Reinforcement 4 | . . . . 1 . 3 Assault 2 | . . . . . . 2 Garrison 3 | . . . . . . 3 Intercept . | . . . . . . . Searches Triggered . | . . . . . . . Construction Impeded . | . . . . . . . Haulers Reinforced 1 | . . . . . . 1 Active Scanning Responses . | . . . . . . . Cargo Convoy Interrupts . | . . . . . . . Stealth | -11 -10 -9 -9 -8 -7 -6 --------- Run | Yrd Mat Mat Min Mat Fac Fac Distress Signals 5 | . 1 . . 2 1 1 Communications Jammed . | . . . . . . . Distress Signals . | . . . . . . . Times Spotted 95 | . 7 8 3 11 29 37 Peak Tracking Total 10 | . 4 6 3 7 5 10 Tactical Retreats 9 | . . 1 . 1 1 6 Traps | -11 -10 -9 -9 -8 -7 -6 ------- Run | Yrd Mat Mat Min Mat Fac Fac Traps Triggered 2 | . 2 . . . . . Indirectly . | . . . . . . . Trap Hack Attempts . | . . . . . . . Triggered . | . . . . . . . Disarmed . | . . . . . . . Reprogrammed . | . . . . . . . Reused . | . . . . . . . Traps Extracted . | . . . . . . . Installed . | . . . . . . . Triggered . | . . . . . . . Machines | -11 -10 -9 -9 -8 -7 -6 ---------- Run | Yrd Mat Mat Min Mat Fac Fac Machines Disabled 4 | . . . . 1 . 3 Max in Single Turn 3 | . . . . 1 . 3 Garrison Access 1 | . . . . . . 1 Machines Repaired . | . . . . . . . Machines Dismantled . | . . . . . . . Machines Sabotaged . | . . . . . . . Overloaded Fab Kills . | . . . . . . . Hacking | -11 -10 -9 -9 -8 -7 -6 --------- Run | Yrd Mat Mat Min Mat Fac Fac Machines Accessed 1 | . . . . . 1 . Terminals . | . . . . . . . Fabricators . | . . . . . . . Repair Stations . | . . . . . . . Recycling Units 1 | . . . . . 1 . Scanalyzers . | . . . . . . . Garrison Access . | . . . . . . . Total Hacks 2 | . . . . . 2 . Successful 1 | . . . . . 1 . Failed 1 | . . . . . 1 . Catastrophic . | . . . . . . . Database Lockouts . | . . . . . . . Manual . | . . . . . . . Terminals . | . . . . . . . Fabricators . | . . . . . . . Repair Stations . | . . . . . . . Recycling Units 2 | . . . . . 2 . Scanalyzers . | . . . . . . . Garrison Access . | . . . . . . . Terminal Hacks . | . . . . . . . Fabricator Hacks . | . . . . . . . Repair Station Hacks . | . . . . . . . Recycling Unit Hacks 1 | . . . . . 1 . Report Inventory 1 | . . . . . 1 . Scanalyzer . | . . . . . . . Garrison Access Hacks . | . . . . . . . Unauthorized Hacks . | . . . . . . . Terminals . | . . . . . . . Fabricators . | . . . . . . . Repair Stations . | . . . . . . . Recycling Units . | . . . . . . . Scanalyzers . | . . . . . . . Garrison Access . | . . . . . . . Data Cores Recovered . | . . . . . . . Used . | . . . . . . . Hacking Detections 1 | . . . . . 1 . Full Trace Events . | . . . . . . . Feedback Events . | . . . . . . . Feedback Blocked . | . . . . . . . Robot Schematics Acquired . | . . . . . . . Robots Built . | . . . . . . . Authchips . | . . . . . . . Time . | . . . . . . . Total Robot Build Rating . | . . . . . . . Part Schematics Acquired . | . . . . . . . Parts Built . | . . . . . . . Authchips . | . . . . . . . Time . | . . . . . . . Total Part Build Rating . | . . . . . . . Parts Repaired . | . . . . . . . Time . | . . . . . . . Parts Recycled . | . . . . . . . Recycled Matter . | . . . . . . . Retrieved Matter . | . . . . . . . Retrieved Components . | . . . . . . . Parts Scanalyzed . | . . . . . . . Part Schematics Acquired . | . . . . . . . Parts Damaged . | . . . . . . . Bothacking | -11 -10 -9 -9 -8 -7 -6 ------------ Run | Yrd Mat Mat Min Mat Fac Fac Used RIF Installer . | . . . . . . . Robots Hacked . | . . . . . . . Non-combat . | . . . . . . . Combat . | . . . . . . . Robot Hacks Applied . | . . . . . . . Relay Couplers Released 2 | . . . . . . 2 Machine Destruction 2 | . . . . . . 2 Fabnet Peak Effective % . | . . . . . . . Robots Rewired . | . . . . . . . Allies Hacked . | . . . . . . . Hacks Repelled . | . . . . . . . Allies | -11 -10 -9 -9 -8 -7 -6 -------- Run | Yrd Mat Mat Min Mat Fac Fac Total Allies . | . . . . . . . Largest Group . | . . . . . . . Highest-Rated Group . | . . . . . . . Highest-Rated Ally . | . . . . . . . Total Orders . | . . . . . . . Ally Attacks . | . . . . . . . Total Damage . | . . . . . . . Kills . | . . . . . . . Allies Corrupted . | . . . . . . . Allies Melted . | . . . . . . . Intel | -11 -10 -9 -9 -8 -7 -6 ------- Run | Yrd Mat Mat Min Mat Fac Fac Robot Analysis Total . | . . . . . . . Derelict Logs Recovered 1 | . . . 1 . . . Drone Launches . | . . . . . . . Drone Recoveries . | . . . . . . . Exploration | -11 -10 -9 -9 -8 -7 -6 ------------- Run | Yrd Mat Mat Min Mat Fac Fac Turns Passed 3799 | 79 329 198 354 416 1934 489 Spaces Moved 2091 | 60 244 112 194 217 1024 240 Core 147 | 10 . . . 1 15 121 Treads 1017 | . 63 112 194 86 521 41 Legs 670 | . . . . 130 488 52 Wheels 257 | 50 181 . . . . 26 Hover . | . . . . . . . Flight . | . . . . . . . Fastest Speed 50 | 50 80 160 160 120 120 50 Average Speed 140 | 75 100 160 160 139 157 95 Slowest Speed 550 | 80 160 160 160 350 550 350 Overloaded Moves . | . . . . . . . Propulsion Burnouts . | . . . . . . . Robots Hopped . | . . . . . . . Cave-ins Triggered . | . . . . . . . Exploration Rate (%) 25 | 4 63 12 44 22 26 9 Regions Visited 6 Branch Regions 1 Pre-discovered Areas 1 | . . . 1 . . . Known Exits Taken . | . . . . . . . Unknown Exits Taken 6 | 1 1 1 1 1 1 . Scrap Searched 2 | . . . 2 . . . Spaces Dug . | . . . . . . . Terrain Destroyed 25 | . . . . 1 1 23 Melee . | . . . . . . . Projectile 2 | . . . . 1 1 . AOE 23 | . . . . . . 23 Terrain Rammed . | . . . . . . . Walls Destroyed . | . . . . . . . Machines Disabled . | . . . . . . . Actions | -11 -10 -9 -9 -8 -7 -6 --------- Run | Yrd Mat Mat Min Mat Fac Fac Total 2668 | 91 301 124 225 283 1233 411 Wait 132 | 12 13 . 15 3 58 31 Move 2085 | 59 243 111 193 216 1023 240 Hop . | . . . . . . . Pick Up 54 | 12 5 2 1 6 14 14 Fast Attach 20 | . . 2 3 . 13 2 Attach 44 | 5 3 1 . 10 6 19 Detach . | . . . . . . . Swap 3 | . 1 . . . 1 1 Drop 29 | . 2 1 2 1 12 11 Fire 295 | 3 34 7 11 47 106 87 Melee . | . . . . . . . Ram 6 | . . . . . . 6 Kick . | . . . . . . . Crush . | . . . . . . . Escape Stasis . | . . . . . . . Rewire . | . . . . . . . Trap . | . . . . . . . Miscellaneous . | . . . . . . . Route ------- -11/Scrapyard -10/Materials (discovered 2 exits: [*Mat] / [*Min]) -9/Materials -9/Mines -8/Materials -7/Factory -6/Factory History --------- Turn | Location | Event 23 | -11/Scrapyard | Discovered new exit (range 16) 80 | -11/Scrapyard | Entered Materials 202 | -10/Materials | Discovered new exit (range 16) 319 | -10/Materials | Build established: Mutant 369 | -10/Materials | Discovered new exit (range 14) 409 | -10/Materials | Entered another Materials area 409 | -9/Materials | Evolved 2 slots: Propulsion x1, Weapon x1 550 | -9/Materials | Discovered new exit (range 4) 607 | -9/Materials | Entered Mines 721 | -9/Mines | Learned location of Storage (-8) 944 | -9/Mines | Discovered new exit (range 10) 961 | -9/Mines | Entered Materials 961 | -8/Materials | Evolved 2 slots: Power x1, Utility x1 1176 | -8/Materials | Core integrity fell below 50% 1198 | -8/Materials | Lost 8 parts (2p3n3w) 1358 | -8/Materials | Discovered new exit (range 12) 1377 | -8/Materials | Entered Factory 1377 | -7/Factory | Evolved 2 slots: Propulsion x1, Utility x1 2057 | -7/Factory | Lost 8 parts (2p4n1u1w) 2329 | -7/Factory | Build established: Scavenger-Mutant 2654 | -7/Factory | Build established: Scavenger-Gunner 3305 | -7/Factory | Discovered new exit (range 4) 3311 | -7/Factory | Entered another Factory area 3311 | -6/Factory | Evolved 2 slots: Utility x1, Weapon x1 3312 | -6/Factory | Garrison activated, responded to threat 3389 | -6/Factory | Build established: Scavenger-Tank 3445 | -6/Factory | Garrison activated, responded to threat 3510 | -6/Factory | Lost 3 parts (2n1w) 3613 | -6/Factory | Lost 3 parts (2n1u) 3661 | -6/Factory | First assault squad dispatched 3678 | -6/Factory | Core integrity fell below 50% 3711 | -6/Factory | Lost 4 parts (1p2u1w) 3742 | -6/Factory | Core integrity fell below 20% 3800 | -6/Factory | Destroyed by S-27 Virus with Autogun Last Messages --------------- 03700_ M-13 Machinist repairs Microactuators. 03721_ L-41 Fighter destroyed. 03723_ Acquired 27 matter. 03725_ Acquired Corrupted Axe. 03726_ Dropped Corrupted Axe. 03732_ Imp. EM Pulse Cannon severed. 03736_ Particle Gun destroyed. 03737_ Slammed into G-50 Soldier. 03738_ Arm. Huge Wheel broken. 03738_ Destabilizing: Short circuit. 03739_ Slammed into L-41 Fighter. 03739_ Arm. Huge Wheel broken. 03739_ Destabilizing: Short circuit. 03740_ Slug penetrates Wall. 03740_ Slammed into G-67 Veteran. 03741_ Slammed into G-50 Soldier. 03742_ Slammed into H-66 Slayer. 03743_ Penetrated by Slug. 03774_ Dropped Broken Arm. Huge Wheel. 03782_ Dropped Hvy. Ion Cannon. Map ----- +----------------------------------------------------+ | ?????????????????????????????? | | ?????????????????????????????? | | ?????????????????????????????? | | ?????????????????????????????? | | ?????????????????????????????? | | ?????????????????????????????? | | ?????????????????????????????? | | ?????????????????????????????? | | ?????????????????????????????? | | ?????????????????????????????? | | ?????????????????????????????? | | ?????????????????????????????? | | ?????????????????????????????? | | ?????????????########???????## | | ?????????????# """ #??????? | | ?????????????# """ #??????# # | | ?????????????# """ #??????# # | | ?????????????# [#??????# # | | ?????????????# #??????# # | | ??????????????? ##+##?## # | | ????###??########+### ### ! | | ????# | | ????#s#??######## ### ### | | ????# #??# # #?#####?## # | | ????# #??# """ + #???????##+# | | ????#@#??# """ # #???????# ] | | ????# #### """ # #???????# | | ????# s + # #???????# | | ??###s#### ! ! # #???????# | | ??# ######## #???????# | | ??# """" #??????# #???????# | | ??# """" #??????# #???????#### | | ??# """" #??????? ?????????# | | ??# """" #??????? ?????????# | | ??# #??????? ?? | | ??#####??#??????? ???####### | | ?????????????????#?????????# | | ???????????????????????????# | | ???????????????????????????# | | ???????????????????????????# | | ??????????????????????????# | | ??????????????????????????# | | ??????????????????????????# ## | | ??????????????????????????# ?? | | ??????????????????????????# ?? | | ??????????????????????????#??? | | ?????????????????????????????? | | ?????????????????????????????? | | ?????????????????????????????? | | ?????????????????????????????? | +----------------------------------------------------+ Best States ------------- Heat Dissipation 37 Energy Generation 18 Energy Capacity 720 Matter Stores 300 Matter Capacity 300 Sight Range 16 Terrain Scan Density 10 Armor Coverage 150 Resistance: KI 20 Resistance: TH 20 Resistance: EX 20 Resistance: EM 20 Resistance: I 20 Resistance: S 20 Resistance: P 20 Power Shielding 66 Evasion (%) 55 Recoil Reduction 3 Offensive Hacking 10 Item Schematics ----------------- None Robot Schematics ------------------ None Fabricated ------------ Nothing Alien Tech Used ----------------- None Achievements -------------- None Challenges ------------ None Game ------ Seed SigixSeismicBlaster Manual? 0 Play Time 00:42:26 Cumulative 38.0 hours Start 2024.03.14 @ 16:53:43 End 2024.03.14 @ 17:36:30 Sessions 1 Manual Loads 0 Difficulty Adventurer Special Mode None Game No. 96 Rogue 83 Adventurer 13 Explorer 0 Win Type - Total 0 Types 0/0/0/0/0/0/0/0/0 Lore% 20 Gallery% 30 Achievement% 24 Wizard Run 0 Options --------- Layout 1 ASCII 0 Keyboard 0 Movement Mouse Keybinds 0 Fullscreen 1 Font 24/Smallcaps Map View 50x35 Zoom Use 0% Tactical HUD 1 Map Filters NONE Filters NONE Steam 1 RUN: 73bde7f3-8ecf-4d7f-b221-13ec5a9406b3